bitfinex/quotes_SOLUSD_20240829
["timestamp","ask_amount","ask_price","bid_price","bid_amount"]
[1724973180180,13.66949729,140.7,140.66,17.7728]
[1724973180385,13.66949729,140.7,140.68,7.1079]
[1724973180887,13.66949729,140.7,140.67,7.1086]
[1724973183501,13.66949729,140.68,140.66,24.8821]
[1724973184098,13.66949729,140.68,140.66,17.7728]
[1724973185904,13.66949729,140.68,140.66,24.8821]
[1724973186393,7.1069,140.71,140.67,7.1087]
[1724973186599,20.77639729,140.71,140.67,7.1087]
[1724973186785,7.1069,140.71,140.67,7.1087]
[1724973186983,13.66949729,140.7,140.67,7.1087]
[1724973187579,13.66949729,140.7,140.67,8.53025679]
[1724973187780,6.6398,140.75,140.68,8.5297605]
[1724973187781,7.1057,140.74,140.68,8.5297605]
[1724973187999,13.66949729,140.72,140.68,8.5297605]
[1724973188801,13.66949729,140.72,140.69,7.1077]
[1724973194186,7.1058,140.73,140.69,7.1077]
[1724973194496,13.66949729,140.72,140.69,7.1077]
[1724973195415,7.1053,140.74,140.69,8.52873041]
[1724973195626,13.66949729,140.73,140.71,7.1067]
[1724973195817,13.66949729,140.73,140.7,7.1072]
[1724973196221,57.88380499,140.77,140.71,17.7669]
[1724973196433,20.0,140.76,140.72,7.1059]
[1724973196735,13.66949729,140.74,140.71,17.7669]
[1724973196911,13.66949729,140.72,140.71,17.7669]
[1724973197317,13.66949729,140.73,140.69,7.1073]
[1724973197512,13.66949729,140.73,140.7,17.7671]
[1724973197731,13.66949729,140.71,140.7,17.7671]
[1724973197930,20.77629729,140.71,140.67,16.0119]
[1724973198127,13.66949729,140.69,140.67,23.1203]
[1724973198337,13.66949729,140.69,140.67,24.54185713]
[1724973198542,13.66949729,140.69,140.68,7.1083]
[1724973199750,13.66949729,140.69,140.67,16.0119]
[1724973200348,13.66949729,140.69,140.67,23.1205]
[1724973201646,13.66949729,140.69,140.68,7.1083]
[1724973201849,15.5153,140.75,140.69,17.7693]
[1724973202149,13.66949729,140.71,140.69,17.7693]
[1724973202325,13.66949729,140.71,140.67,16.0119]
[1724973202534,13.66949729,140.69,140.67,23.1207]
[1724973203248,13.66949729,140.7,140.67,23.1207]
[1724973203433,13.66949729,140.7,140.67,17.43339782]
[1724973203634,13.66949729,140.7,140.68,7.1082]
[1724973204825,13.66949729,140.7,140.67,23.1206]
[1724973206168,13.66949729,140.7,140.68,7.1081]
[1724973207138,13.66949729,140.7,140.67,23.1206]
[1724973209953,13.66949729,140.7,140.67,7.1087]
[1724973210448,13.66949729,140.7,140.66,24.8826]
[1724973210655,13.66949729,140.68,140.66,24.8826]
[1724973210852,13.66949729,140.68,140.66,17.7733]
[1724973211856,13.66949729,140.68,140.63,17.7767]
[1724973212156,20.77929729,140.65,140.6,39.9797]
[1724973212335,13.66949729,140.63,140.61,7.1117]
[1724973213851,13.66949729,140.68,140.63,17.7769]
[1724973214161,13.66949729,140.69,140.65,17.7739]
[1724973214343,13.66949729,140.69,140.66,7.1091]
[1724973215452,13.66949729,140.69,140.65,24.8836]
[1724973215761,13.66949729,140.67,140.65,24.8836]
[1724973219173,13.66949729,140.67,140.63,13.725]
[1724973219458,13.66949729,140.67,140.64,7.1103]
[1724973223157,13.66949729,140.67,140.64,17.7752]
[1724973224251,13.66949729,140.67,140.65,7.1097]
[1724973225462,13.66949729,140.67,140.64,24.8854]
[1724973231145,13.66949729,140.67,140.65,7.1097]
[1724973233265,22.9665,140.73,140.66,7.1093]
[1724973233266,7.1074,140.7,140.66,7.1093]
[1724973233564,13.66949729,140.7,140.67,7.1088]
[1724973233954,13.66949729,140.7,140.66,24.882]
[1724973234545,13.66949729,140.68,140.66,17.7728]
[1724973234767,13.66949729,140.68,140.64,7.1102]
[1724973235071,40.7317,140.73,140.65,7.1097]
[1724973235072,13.66949729,140.69,140.65,7.1097]
[1724973235375,13.66949729,140.69,140.66,7.1093]
[1724973236275,7.1063,140.72,140.68,7.1083]
[1724973236450,20.77579729,140.72,140.68,1.04235544]
[1724973236649,20.77579729,140.72,140.67,24.8801]
[1724973237362,13.66949729,140.7,140.67,24.8801]
[1724973237674,20.77679729,140.7,140.67,17.7714]
[1724973237846,20.77689729,140.7,140.65,7.1097]
[1724973238172,13.66949729,140.68,140.64,24.8856]
[1724973238670,20.77779729,140.68,140.64,17.7754]
[1724973239253,20.77779729,140.68,140.64,24.8856]
[1724973240274,13.66949729,140.66,140.61,17.7793]
[1724973240472,13.66949729,140.64,140.61,17.7793]
[1724973241875,13.66949729,140.62,140.61,17.7793]
[1724973242461,13.66949729,140.62,140.58,17.7831]
[1724973242663,13.66949729,140.6,140.58,17.7831]
[1724973244079,20.78199729,140.6,140.54,33.7835]
[1724973244389,13.66949729,140.58,140.56,7.1143]
[1724973245381,13.66949729,140.58,140.55,7.1148]
[1724973245885,13.66949729,140.58,140.56,7.1143]
[1724973249281,13.66949729,140.58,140.55,7.1147]
[1724973250561,13.66949729,140.58,140.54,17.788]
[1724973250562,13.66949729,140.58,140.54,24.9033]
[1724973252687,13.66949729,140.58,140.55,7.1148]
[1724973253986,20.32619729,140.62,140.55,7.1148]
[1724973253987,7.1125,140.6,140.55,7.1148]
[1724973254279,13.66949729,140.6,140.56,8.53683245]
[1724973254491,13.66949729,140.6,140.56,7.114]
[1724973255356,7.1109,140.63,140.58,17.7827]
[1724973255561,20.78039729,140.63,140.58,17.7827]
[1724973255771,22.5688,140.68,140.58,17.7827]
[1724973256060,22.5688,140.68,140.59,8.53495656]
[1724973256061,20.77989729,140.64,140.59,8.53495656]
[1724973256372,13.66949729,140.62,140.58,19.20505002]
[1724973256765,13.66949729,140.62,140.59,7.1128]
[1724973260175,13.66949729,140.64,140.6,7.1119]
[1724973260789,20.77989729,140.64,140.59,7.1127]
[1724973261079,13.66949729,140.62,140.59,7.1127]
[1724973261382,20.78099729,140.62,140.58,24.896]
[1724973261569,13.66949729,140.62,140.59,7.1128]
[1724973268466,13.66949729,140.62,140.6,7.1122]
[1724973276205,29.6774,140.68,140.63,7.1107]
[1724973276396,13.66949729,140.66,140.62,24.8889]
[1724973276691,13.66949729,140.64,140.62,17.7776]
[1724973277880,13.66949729,140.64,140.61,7.1117]
[1724973278980,13.66949729,140.64,140.6,7.1123]
[1724973279585,13.66949729,140.62,140.6,7.1123]
[1724973283190,7.1099,140.65,140.6,7.1123]
[1724973283400,13.66949729,140.63,140.6,7.1123]
[1724973285707,13.66949729,140.63,140.61,7.1118]
[1724973286288,13.66949729,140.65,140.61,7.1118]
[1724973287594,13.66949729,140.65,140.62,7.1112]
[1724973287804,7.23253588,140.7,140.61,6.25319]
[1724973287988,13.66949729,140.69,140.61,6.25319]
[1724973288302,13.66949729,140.67,140.65,17.7739]
[1724973289502,13.66949729,140.67,140.62,17.778]
[1724973289680,13.66949729,140.67,140.63,7.1107]
[1724973292513,13.66949729,140.67,140.64,7.1102]
[1724973293912,7.1078,140.69,140.64,7.1102]
[1724973294212,13.66949729,140.67,140.65,7.1097]
[1724973294393,13.66949729,140.67,140.64,7.1102]
[1724973299309,13.66949729,140.67,140.63,7.1107]
[1724973301096,13.66949729,140.65,140.63,7.1107]
[1724973302596,13.66949729,140.65,140.62,17.778]
[1724973302810,13.66949729,140.63,140.61,7.1117]
[1724973302994,13.66949729,140.63,140.6,7.1123]
[1724973303202,13.66949729,140.63,140.59,24.8944]
[1724973303395,13.66949729,140.61,140.59,24.8944]
[1724973307019,13.66949729,140.61,140.57,7.1137]
[1724973308009,7.1108,140.63,140.58,1.42244605]
[1724973308208,13.66949729,140.62,140.58,1.42244605]
[1724973308409,7.1101,140.65,140.59,17.7821]
[1724973308607,13.66949729,140.64,140.6,7.1123]
[1724973308922,13.66949729,140.64,140.59,17.7821]
[1724973308923,13.66949729,140.62,140.59,24.8947]
[1724973309422,18.66341196,140.67,140.6,7.1118]
[1724973309625,13.66949729,140.63,140.6,7.1118]
[1724973310427,13.66949729,140.61,140.59,24.8948]
[1724973317224,13.66949729,140.63,140.6,7.1123]
[1724973317730,13.66949729,140.63,140.59,17.7821]
[1724973318029,13.66949729,140.63,140.61,7.1117]
[1724973321413,7.1093,140.66,140.61,7.1117]
[1724973321731,13.66949729,140.65,140.62,7.1113]
[1724973323920,13.66949729,140.63,140.59,17.7821]
[1724973324232,13.66949729,140.61,140.59,17.7821]
[1724973324443,13.66949729,140.61,140.59,24.8945]
[1724973325432,13.66949729,140.63,140.6,7.1123]
[1724973328220,13.66949729,140.63,140.59,24.8949]
[1724973335449,13.66949729,140.63,140.6,7.1119]
[1724973335621,20.77929729,140.65,140.6,7.1119]
[1724973336320,13.66949729,140.63,140.6,7.1119]
[1724973341845,13.66949729,140.61,140.59,24.8948]
[1724973343843,13.66949729,140.61,140.56,53.3567]
[1724973344041,13.66949729,140.61,140.57,7.1135]
[1724973345153,13.66949729,140.59,140.56,17.7852]
[1724973345332,20.78239729,140.59,140.54,13.1165]
[1724973345529,15.364,140.62,140.53,17.7892]
[1724973345530,13.66949729,140.57,140.53,17.7892]
[1724973345856,20.78369729,140.57,140.53,24.905]
[1724973346150,13.66949729,140.57,140.54,7.1153]
[1724973347231,7.1118,140.61,140.55,18.78463479]
[1724973347451,13.66949729,140.6,140.55,17.7866]
[1724973347752,13.66949729,140.6,140.56,1.42259454]
[1724973347954,13.66949729,140.6,140.57,7.1138]
[1724973348861,13.66949729,140.6,140.58,7.1133]
[1724973352062,13.66949729,140.6,140.56,7.1141]
[1724973352760,20.78189729,140.6,140.55,24.9014]
[1724973353253,13.66949729,140.58,140.55,24.9014]
[1724973353466,13.66949729,140.58,140.55,17.7866]
[1724973354055,20.78279729,140.58,140.55,17.7866]
[1724973354266,20.78279729,140.58,140.53,7.1158]
[1724973354552,20.78289729,140.58,140.53,7.1158]
[1724973357753,13.66949729,140.56,140.52,24.9068]
[1724973357955,13.66949729,140.54,140.52,17.7905]
[1724973359932,13.66949729,140.54,140.52,24.9068]
[1724973361858,13.66949729,140.54,140.52,17.7905]
[1724973363652,13.66949729,140.54,140.51,7.1167]
[1724973365653,7.1144,140.56,140.52,7.1163]
[1724973365855,13.66949729,140.56,140.52,17.7907]
[1724973366364,13.66949729,140.56,140.53,7.1157]
[1724973367536,13.66949729,140.54,140.52,17.7907]
[1724973367954,13.66949729,140.54,140.52,24.907]
[1724973368365,13.66949729,140.56,140.52,24.907]
[1724973368857,13.66949729,140.54,140.52,24.907]
[1724973369061,23.4834,140.57,140.52,24.907]
[1724973369262,13.66949729,140.56,140.52,24.907]
[1724973369568,13.66949729,140.56,140.53,7.1158]
[1724973370765,13.66949729,140.57,140.54,7.1151]
[1724973371144,15.9664,140.61,140.55,1.41971764]
[1724973371346,13.66949729,140.61,140.58,7.1132]
[1724973371766,20.78129729,140.61,140.56,17.7853]
[1724973371971,13.66949729,140.59,140.56,17.7853]
[1724973375275,20.78239729,140.59,140.55,7.1148]
[1724973375446,13.66949729,140.57,140.53,17.7891]
[1724973376180,20.78339729,140.57,140.53,24.9048]
[1724973377266,13.66949729,140.57,140.54,7.1154]
[1724973379443,7.1134,140.58,140.54,7.1154]
[1724973379660,20.78349729,140.57,140.53,17.86495137]
[1724973380272,13.66949729,140.57,140.53,24.98075137]
[1724973381540,29.80609729,140.6,140.54,0.52206003]
[1724973381778,29.80609729,140.6,140.56,7.1143]
[1724973381779,13.66949729,140.6,140.56,7.1143]
[1724973382068,13.66949729,140.6,140.57,7.1138]
[1724973382254,20.78189729,140.6,140.55,24.9008]
[1724973382567,7.1124,140.6,140.55,24.9008]
[1724973383065,13.66949729,140.59,140.56,7.1143]
[1724973385572,13.66949729,140.59,140.55,24.9011]
[1724973386563,13.66949729,140.59,140.56,7.1143]
[1724973389172,13.66949729,140.59,140.57,7.1137]
[1724973389557,13.66949729,140.61,140.57,7.1137]
[1724973391665,13.66949729,140.59,140.56,7.114]
[1724973391873,13.66949729,140.57,140.55,17.7864]
[1724973395073,13.59364592,140.57,140.55,17.7864]
[1724973395570,13.59364592,140.57,140.52,17.7904]
[1724973395870,13.66949729,140.53,140.52,17.7904]
[1724973396451,13.66949729,140.53,140.52,24.9068]
[1724973398267,13.66949729,140.53,140.49,6.5803]
[1724973398476,13.66949729,140.53,140.48,17.795]
[1724973398768,13.66949729,140.51,140.49,7.1175]
[1724973399775,13.66949729,140.51,140.48,17.795]
[1724973400273,13.66949729,140.51,140.48,24.9132]
[1724973400477,13.66949729,140.51,140.48,17.795]
[1724973401256,13.66949729,140.51,140.48,24.9134]
[1724973410377,7.1159,140.53,140.49,7.1178]
[1724973410575,13.66949729,140.52,140.49,7.1178]
[1724973415378,13.66949729,140.52,140.45,41.9802]
[1724973415379,7.1144,140.56,140.5,17.7926]
[1724973415583,13.66949729,140.55,140.51,7.1164]
[1724973417483,13.66949729,140.55,140.52,7.1162]
[1724973417982,13.66949729,140.55,140.5,17.7926]
[1724973417983,6.1179,140.59,140.53,1.42320653]
[1724973418192,23.7432,140.61,140.56,7.1143]
[1724973418479,13.66949729,140.59,140.56,7.1143]
[1724973423867,13.66949729,140.59,140.55,7.1147]
[1724973424085,13.66949729,140.57,140.55,7.1147]
[1724973427482,7.1124,140.6,140.56,7.1143]
[1724973427792,13.66949729,140.59,140.56,7.1143]
[1724973428785,6.1179,140.63,140.58,7.1133]
[1724973428991,13.66949729,140.62,140.58,7.1133]
[1724973430492,20.78099729,140.62,140.58,7.1133]
[1724973430692,20.78099729,140.62,140.57,7.1137]
[1724973430879,7.1115,140.62,140.57,7.1137]
[1724973431077,16.6312,140.64,140.58,1.42234892]
[1724973431078,7.1109,140.63,140.58,1.42234892]
[1724973431319,13.66949729,140.62,140.57,1.42251976]
[1724973431597,13.66949729,140.62,140.56,17.7854]
[1724973431901,13.66949729,140.62,140.58,7.1132]
[1724973433002,13.66949729,140.6,140.56,24.8997]
[1724973433181,13.66949729,140.58,140.56,24.8997]
[1724973433582,13.66949729,140.58,140.54,7.115]
[1724973434102,13.66949729,140.56,140.53,41.1589]
[1724973434287,13.66949729,140.56,140.53,24.9047]
[1724973434880,13.66949729,140.56,140.54,7.1153]
[1724973435601,13.66949729,140.56,140.53,24.9048]
[1724973436316,13.66949729,140.54,140.53,17.789]
[1724973436491,13.66949729,140.54,140.51,7.1164]
[1724973437585,13.66949729,140.52,140.5,24.9103]
[1724973440604,13.66949729,140.52,140.5,17.7929]
[1724973441113,13.66949729,140.52,140.5,24.9102]
[1724973441294,20.78499729,140.54,140.5,24.9102]
[1724973444609,20.78499729,140.54,140.5,17.7929]
[1724973444905,13.66949729,140.52,140.47,17.7967]
[1724973445208,13.66949729,140.5,140.47,17.7967]
[1724973445587,13.66949729,140.5,140.48,7.1184]
[1724973447805,13.66949729,140.51,140.48,7.1184]
[1724973449784,7.1154,140.54,140.49,7.1178]
[1724973449984,13.66949729,140.53,140.49,7.1178]
[1724973450405,20.78549729,140.53,140.49,7.1178]
[1724973450802,20.78549729,140.53,140.48,7.1183]
[1724973451115,13.66949729,140.49,140.47,24.9156]
[1724973451797,13.66949729,140.51,140.48,7.1183]
[1724973456815,13.66949729,140.51,140.49,7.1175]
[1724973457016,13.66949729,140.53,140.49,7.1175]
[1724973460215,7.1139,140.57,140.51,17.7917]
[1724973460400,13.66949729,140.56,140.52,7.1163]
[1724973460594,13.66949729,140.54,140.51,24.9085]
[1724973464113,13.66949729,140.54,140.52,7.1163]
[1724973466423,13.66949729,140.56,140.52,7.1163]
[1724973469725,13.66949729,140.54,140.51,24.9085]
[1724973472927,20.78389729,140.56,140.52,7.1162]
[1724973473722,13.66949729,140.56,140.52,7.1162]
[1724973474900,13.66949729,140.55,140.52,7.1162]
[1724973475623,13.66949729,140.55,140.51,24.9085]
[1724973479301,13.66949729,140.54,140.52,7.1163]
[1724973485637,13.66949729,140.55,140.53,7.1158]
[1724973486934,104.75244895,140.5,140.47,65.09859729]
[1724973487138,104.75244895,140.5,140.48,53.50056594]
[1724973487439,104.75244895,140.5,140.49,6.82627685]
[1724973487736,104.75244895,140.5,140.47,51.4291]
[1724973487909,104.75244895,140.5,140.48,6.82662025]
[1724973488107,104.75244895,140.5,140.49,24.9127]
[1724973494013,118.42194624,140.5,140.47,15.8368]
[1724973494217,118.42194624,140.5,140.46,17.7982]
[1724973494517,13.66949729,140.48,140.46,17.7982]
[1724973495142,13.66949729,140.48,140.46,24.9172]
[1724973496115,104.75244895,140.5,140.49,7.1179]
[1724973496316,104.75244895,140.5,140.49,8.54131779]
[1724973496545,104.75244895,140.5,140.49,24.41381779]
[1724973497148,104.75244895,140.5,140.49,22.9904]
[1724973497350,104.75244895,140.5,140.49,26.26882375]
[1724973497533,104.75244895,140.5,140.49,27.69220671]
[1724973499148,104.75244895,140.5,140.49,20.57430671]
[1724973499346,104.75244895,140.5,140.49,7.1179]
[1724973501646,104.75244895,140.5,140.48,24.9137]
[1724973502050,106.1755926,140.5,140.48,24.9137]
[1724973502247,13.66949729,140.49,140.45,24.9191]
[1724973502443,1.42314365,140.48,140.45,24.9191]
[1724973503563,1.42314365,140.48,140.42,17.8033]
[1724973503564,20.78839729,140.47,140.42,17.8033]
[1724973503751,13.66949729,140.44,140.42,17.8033]
[1724973504558,1.42314365,140.43,140.42,17.8033]
[1724973504945,20.78839729,140.47,140.42,24.9247]
[1724973505143,1.42314365,140.46,140.42,24.9247]
[1724973506449,35.58816435,140.46,140.42,24.9247]
[1724973506960,35.58816435,140.46,140.43,7.1207]
[1724973507161,35.58816435,140.46,140.42,24.9247]
[1724973510247,1.42314365,140.46,140.42,24.9247]
[1724973511573,1.42314365,140.46,140.43,7.1209]
[1724973515373,35.58816435,140.48,140.44,7.1204]
[1724973515668,1.42314365,140.48,140.45,7.1199]
[1724973515870,1.42314365,140.48,140.44,24.9206]
[1724973516247,42.70696435,140.48,140.44,17.8003]
[1724973520268,42.70696435,140.48,140.44,24.9206]
[1724973520465,1.42314365,140.49,140.44,17.8003]
[1724973521045,1.42314365,140.49,140.46,7.1192]
[1724973526454,146.03486965,140.5,140.46,7.1192]
[1724973526654,104.75244895,140.5,140.47,1.41398675]
[1724973528355,104.75244895,140.5,140.49,7.1179]
[1724973535392,104.75244895,140.5,140.49,8.53866936]
[1724973538278,104.75244895,140.5,140.49,7.1179]
[1724973540401,104.75244895,140.5,140.49,70.13763395]
[1724973540896,104.75244895,140.5,140.49,23.4665]
[1724973541271,104.75244895,140.5,140.49,7.1179]
[1724973541898,104.75244895,140.5,140.48,24.9136]
[1724973542086,106.1755926,140.5,140.48,24.9136]
[1724973543796,106.1755926,140.5,140.48,17.7953]
[1724973548183,13.65419825,140.49,140.47,7.1188]
[1724973548382,1.42314365,140.48,140.47,7.1188]
[1724973548790,1.42314365,140.48,140.42,17.8031]
[1724973549102,13.65419825,140.47,140.42,17.8031]
[1724973549300,1.42314365,140.46,140.42,17.8031]
[1724973549904,1.42314365,140.46,140.43,7.1205]
[1724973551598,1.42314365,140.45,140.42,24.9244]
[1724973551915,13.65419825,140.43,140.39,17.8072]
[1724973552204,1.42314365,140.42,140.39,17.8072]
[1724973552607,1.42314365,140.42,140.39,24.93]
[1724973555113,6.6095,140.49,140.4,30.27729825]
[1724973555319,104.75244895,140.5,140.44,13.65419825]
[1724973555605,104.75244895,140.5,140.48,7.1183]
[1724973555899,15.0773419,140.49,140.46,7.1189]
[1724973556105,1.42314365,140.48,140.46,7.1189]
[1724973557183,138.90575747,140.5,140.46,7.1189]
[1724973557184,1.42314365,140.49,140.46,7.1189]
[1724973557510,1.42314365,140.48,140.46,7.1189]
[1724973557913,1.42314365,140.49,140.47,7.1189]
[1724973558198,106.1755926,140.5,140.46,17.7974]
[1724973558412,104.75244895,140.5,140.46,17.7974]
[1724973558587,1.42314365,140.49,140.47,7.1188]
[1724973560402,106.1755926,140.5,140.47,7.1188]
[1724973561513,1.42314365,140.49,140.47,7.1188]
[1724973561698,106.1755926,140.5,140.47,7.1188]
[1724973562605,106.1755926,140.5,140.47,6.1188]
[1724973562810,1.42314365,140.49,140.47,6.1188]
[1724973564194,1.42314365,140.49,140.46,24.9168]
[1724973565200,1.42314365,140.49,140.47,7.1189]
[1724973566434,106.1755926,140.5,140.47,7.1189]
[1724973567216,104.75244895,140.5,140.47,7.1189]
[1724973567718,1.42314365,140.49,140.47,7.1189]
[1724973574224,1.42314365,140.49,140.46,24.9167]
[1724973574808,8.54104365,140.49,140.46,17.7974]
[1724973576919,8.54104365,140.49,140.42,35.6062]
[1724973577219,7.1198,140.46,140.41,7.1218]
[1724973577524,1.42314365,140.45,140.41,7.1218]
[1724973577698,1.42314365,140.45,140.42,7.1214]
[1724973578433,1.42314365,140.46,140.42,7.1214]
[1724973581933,1.42314365,140.45,140.42,7.1214]
[1724973583908,1.42314365,140.45,140.42,6.67547]
[1724973584107,1.42314365,140.45,140.41,7.1218]
[1724973584622,34.16752354,140.44,140.37,33.3655]
[1724973584931,21.926,140.47,140.37,17.8097]
[1724973584932,7.122,140.41,140.37,17.8097]
[1724973585133,1.42314365,140.4,140.37,17.8097]
[1724973585824,1.42314365,140.39,140.37,17.8097]
[1724973586828,1.42314365,140.39,140.33,15.2948]
[1724973587126,1.42314365,140.39,140.35,7.125]
[1724973588022,1.42314365,140.39,140.36,7.1244]
[1724973588411,1.42314365,140.39,140.31,17.8175]
[1724973588412,7.1238,140.38,140.31,17.8175]
[1724973588730,1.42314365,140.37,140.33,7.1258]
[1724973588901,1.42314365,140.37,140.34,7.1254]
[1724973589398,1.42314365,140.39,140.34,7.1254]
[1724973589639,8.54634365,140.39,140.34,7.1254]
[1724973590118,1.42314365,140.39,140.35,7.1249]
[1724973592029,1.42314365,140.39,140.33,17.814]
[1724973592222,7.1236,140.38,140.33,17.814]
[1724973592436,1.42314365,140.37,140.34,7.1254]
[1724973593517,1.42314365,140.38,140.35,7.1249]
[1724973594630,1.42314365,140.39,140.35,7.1249]
[1724973596231,8.54624365,140.39,140.35,7.1249]
[1724973600233,1.42314365,140.4,140.37,7.1238]
[1724973600735,1.42314365,140.4,140.36,7.1244]
[1724973600913,1.42314365,140.39,140.36,7.1244]
[1724973601514,13.68067391,140.38,140.35,17.8118]
[1724973601723,1.42314365,140.37,140.35,17.8118]
[1724973603629,13.68067391,140.36,140.33,7.1259]
[1724973603813,1.42314365,140.35,140.33,7.1259]
[1724973606917,1.42314365,140.35,140.32,17.816]
[1724973607643,1.42314365,140.35,140.32,24.9424]
[1724973608845,6.228,140.47,140.39,17.8063]
[1724973609150,1.42314365,140.44,140.4,7.1224]
[1724973609340,1.42314365,140.43,140.4,7.1224]
[1724973610423,1.42314365,140.44,140.4,7.1224]
[1724973611530,1.42314365,140.44,140.41,7.1218]
[1724973612018,104.75244895,140.5,140.49,7.1179]
[1724973612450,104.75244895,140.5,140.48,7.1183]
[1724973612625,1.42314365,140.49,140.48,7.1183]
[1724973614541,1.42314365,140.49,140.47,7.1189]
[1724973614736,1.42314365,140.48,140.47,7.1189]
[1724973615846,1.42314365,140.49,140.47,7.1189]
[1724973616022,1.42314365,140.48,140.47,7.1189]
[1724973616530,1.42314365,140.48,140.46,17.7983]
[1724973617138,1.42314365,140.49,140.46,24.9177]
[1724973617444,1.42314365,140.48,140.46,24.9177]
[1724973617648,1.42314365,140.48,140.44,7.12]
[1724973618543,1.42314365,140.48,140.43,24.9232]
[1724973618750,34.13708673,140.47,140.43,24.9232]
[1724973619052,34.13708673,140.47,140.41,7.1218]
[1724973619053,34.13708673,140.45,140.41,7.1218]
[1724973619356,1.42314365,140.44,140.41,7.1218]
[1724973620754,34.13708673,140.43,140.4,24.9285]
[1724973621051,1.42314365,140.42,140.4,24.9285]
[1724973621352,1.42314365,140.42,140.39,7.1229]
[1724973622250,1.42314365,140.42,140.38,7.1234]
[1724973623039,1.42314365,140.42,140.39,7.1229]
[1724973623556,1.42314365,140.42,140.4,7.1224]
[1724973623740,21.42314365,140.44,140.4,7.1224]
[1724973623936,21.42314365,140.44,140.41,7.1217]
[1724973624142,1.42314365,140.44,140.41,7.1217]
[1724973626261,1.42314365,140.44,140.4,24.9277]
[1724973627636,8.54364365,140.44,140.4,24.9277]
[1724973628852,8.54364365,140.44,140.4,17.8053]
[1724973629656,34.13708673,140.41,140.37,17.8097]
[1724973629956,1.42314365,140.4,140.36,7.1244]
[1724973630131,35.56023038,140.39,140.34,17.8132]
[1724973630337,42.68353038,140.39,140.34,24.9386]
[1724973630645,35.56023038,140.39,140.34,24.9386]
[1724973631652,42.68323038,140.39,140.34,24.9386]
[1724973633041,35.56023038,140.39,140.35,7.1247]
[1724973633979,35.56023038,140.39,140.34,17.8132]
[1724973633980,1.42314365,140.39,140.34,17.8132]
[1724973634150,21.42314365,140.41,140.34,17.8132]
[1724973634464,1.42314365,140.41,140.34,17.8132]
[1724973635267,1.42314365,140.41,140.37,7.1239]
[1724973635447,34.13708673,140.38,140.32,7.1265]
[1724973635759,41.26158673,140.36,140.3,24.9446]
[1724973635963,1.42314365,140.35,140.3,24.9446]
[1724973636271,1.42314365,140.35,140.31,7.127]
[1724973636673,34.13708673,140.34,140.3,24.9451]
[1724973636843,1.42314365,140.33,140.3,17.8176]
[1724973637163,1.42314365,140.32,140.24,15.1412]
[1724973637351,1.42314365,140.32,140.28,7.1285]
[1724973638766,8.54974365,140.32,140.27,7.129]
[1724973639062,41.26468673,140.3,140.26,17.8229]
[1724973639272,1.42314365,140.29,140.26,17.8229]
[1724973641062,1.42314365,140.29,140.26,24.9525]
[1724973641872,1.42314365,140.29,140.26,17.8229]
[1724973642745,41.26568673,140.28,140.23,17.8276]
[1724973643060,34.13708673,140.26,140.23,17.8276]
[1724973643370,1.42314365,140.25,140.23,17.8276]
[1724973644074,1.42314365,140.27,140.23,17.8276]
[1724973644270,1.42314365,140.26,140.23,17.8276]
[1724973645181,1.42314365,140.27,140.23,17.8276]
[1724973645394,1.42314365,140.26,140.23,17.8276]
[1724973645568,1.42314365,140.26,140.23,24.9587]
[1724973645883,1.42314365,140.26,140.24,7.1301]
[1724973646193,1.42314365,140.26,140.23,24.9586]
[1724973646394,7.1296,140.26,140.2,33.9935]
[1724973646600,1.42314365,140.25,140.21,7.1321]
[1724973647985,1.42314365,140.26,140.22,7.1314]
[1724973648876,1.42314365,140.27,140.22,7.1314]
[1724973649076,1.42314365,140.26,140.23,7.1309]
[1724973650101,1.42314365,140.27,140.23,7.1309]
[1724973650312,1.42314365,140.26,140.23,7.1309]
[1724973651307,1.42314365,140.27,140.24,7.1305]
[1724973651528,1.42314365,140.28,140.22,17.828]
[1724973652204,34.13708673,140.27,140.22,17.828]
[1724973652497,1.42314365,140.26,140.22,17.828]
[1724973653402,1.42314365,140.26,140.22,24.9596]
[1724973656313,1.42314365,140.26,140.23,7.131]
[1724973656501,7.1286,140.28,140.23,7.131]
[1724973656502,1.42314365,140.27,140.23,7.131]